bitfinex-derivatives/quotes_SOLF0:USTF0_20250110
["timestamp","ask_amount","ask_price","bid_price","bid_amount"]
[1736489796765,2.6301,190.14,190.04,10.62690304]
[1736489796960,10.62690304,190.16,190.04,10.62690304]
[1736489797364,2.6303,190.12,190.07,2.6308]
[1736489800467,2.6301,190.13,190.04,10.62690304]
[1736489800761,10.62690304,190.16,190.04,10.62690304]
[1736489800964,1.5009,190.17,190.04,10.62690304]
[1736489801265,1.5009,190.17,190.07,10.62690304]
[1736489802163,2.6298,190.15,190.1,2.6304]
[1736489802767,1.5009,190.17,190.07,10.62690304]
[1736489802964,2.6303,190.12,190.08,2.6307]
[1736489803867,1.5009,190.17,190.04,10.62690304]
[1736489804068,2.6301,190.14,190.09,2.6306]
[1736489804867,2.6301,190.13,190.09,2.6306]
[1736489805665,2.6303,190.12,190.07,2.6308]
[1736489807968,2.6304,190.11,190.07,2.6308]
[1736489809271,2.6304,190.11,190.07,9.43433455]
[1736489810071,2.6308,190.09,190.02,1.4924]
[1736489810269,6.80353455,190.1,190.02,8.29593455]
[1736489811066,2.631,190.07,190.03,2.6315]
[1736489811374,10.63433858,190.13,190.02,1.4924]
[1736489811676,2.6305,190.11,190.06,2.631]
[1736489811873,10.63433858,190.13,190.0,12.27473858]
[1736489812173,3.1465,190.12,190.0,12.27473858]
[1736489812875,2.6309,190.08,190.03,2.6315]
[1736489816875,2.6309,190.08,190.04,2.6313]
[1736489819877,1.6329,190.12,190.03,10.63433858]
[1736489820778,1.6329,190.12,190.08,2.6307]
[1736489821279,1.6329,190.12,190.09,2.6307]
[1736489822381,4.2632,190.12,190.05,2.6311]
[1736489822673,4.2632,190.12,190.03,10.63433858]
[1736489823582,2.6304,190.11,190.03,10.63433858]
[1736489824385,2.6304,190.11,190.07,2.6309]
[1736489824986,1.6329,190.12,190.0,12.27473858]
[1736489825186,1.6329,190.12,190.0,10.63433858]
[1736489825386,1.6353,190.11,190.0,10.63433858]
[1736489825588,2.631,190.07,190.0,10.63433858]
[1736489825787,1.6353,190.11,190.0,10.63433858]
[1736489827188,2.6308,190.08,190.04,2.6313]
[1736489827587,1.6353,190.11,190.04,2.6313]
[1736489827887,2.6307,190.09,190.04,2.6313]
[1736489828088,1.6353,190.11,190.03,2.6315]
[1736489828387,10.63433858,190.1,189.98,1.6454]
[1736489828686,2.6312,190.05,189.97,12.18893858]
[1736489828882,10.63433858,190.07,189.99,2.632]
[1736489829584,2.6315,190.04,189.99,2.632]
[1736489829786,2.6315,190.04,190.0,2.6319]
[1736489830983,10.63433858,190.07,189.97,12.18893858]
[1736489831179,16.77353858,190.1,190.0,10.63433858]
[1736489831689,2.6308,190.08,190.03,2.6314]
[1736489831989,2.6308,190.08,190.0,10.63433858]
[1736489832789,2.6308,190.08,190.03,2.6314]
[1736489833083,16.77353858,190.1,190.0,10.63433858]
[1736489833289,6.80955663,190.05,189.99,6.80955663]
[1736489834179,2.6314,190.04,190.0,2.6319]
[1736489841094,2.6315,190.03,189.99,9.44155663]
[1736489844295,2.6315,190.03,189.97,6.80955663]
[1736489844296,2.6317,190.02,189.97,6.80955663]
[1736489844491,6.80955663,190.03,189.95,6.80955663]
[1736489844698,6.80955663,190.01,189.94,6.80955663]
[1736489845097,2.6322,189.98,189.94,9.44225663]
[1736489845495,2.6322,189.98,189.94,2.6327]
[1736489845693,6.80955663,189.99,189.9,1.5682]
[1736489845889,6.80955663,189.99,189.91,6.80955663]
[1736489846092,6.80955663,189.97,189.89,33.32405681]
[1736489846298,6.80955663,189.97,189.89,9.44295663]
[1736489846697,6.80955663,189.97,189.91,6.80955663]
[1736489847699,2.6325,189.96,189.91,9.44255663]
[1736489847903,2.6325,189.96,189.91,6.80955663]
[1736489848703,2.6325,189.96,189.91,9.44275663]
[1736489849002,2.6326,189.95,189.91,9.44275663]
[1736489849202,9.44215663,189.95,189.89,6.80955663]
[1736489849702,6.80955663,189.95,189.89,6.80955663]
[1736489849897,6.80955663,189.95,189.89,9.44285663]
[1736489850099,6.80955663,189.95,189.89,2.6333]
[1736489850300,2.6329,189.93,189.89,2.6333]
[1736489850500,2.6329,189.93,189.89,9.44285663]
[1736489850698,6.80955663,189.95,189.89,9.44285663]
[1736489850895,6.80955663,189.95,189.87,6.80955663]
[1736489851101,6.80955663,189.93,189.87,9.44315663]
[1736489851893,9.44255663,189.93,189.87,9.44315663]
[1736489852205,9.44255663,189.93,189.84,3.1922]
[1736489852206,6.80955663,189.91,189.85,9.44355663]
[1736489853205,2.6334,189.9,189.85,2.634]
[1736489855609,9.44285663,189.91,189.86,2.6339]
[1736489857209,9.44285663,189.91,189.86,2.59656433]
[1736489858115,6.80955663,189.91,189.86,2.59656433]
[1736489858410,2.6333,189.9,189.86,2.59656433]
[1736489861815,2.6331,189.92,189.88,6.80955663]
[1736489862014,11.61335663,189.94,189.88,6.80955663]
[1736489862612,4.8038,189.94,189.88,6.80955663]
[1736489862814,9.44245663,189.93,189.88,9.44305663]
[1736489863014,9.44245663,189.93,189.88,6.80955663]
[1736489864311,9.44245663,189.93,189.89,2.6334]
[1736489864517,2.6329,189.93,189.89,2.6334]
[1736489865219,9.44235663,189.94,189.9,2.6333]
[1736489867224,6.80955663,189.94,189.91,2.6332]
[1736489867417,4.6588,190.05,189.92,6.80955663]
[1736489867717,4.6588,190.05,189.98,2.6321]
[1736489867718,6.80955663,190.02,189.98,2.6321]
[1736489867917,6.80955663,190.02,189.96,6.80955663]
[1736489869211,6.80955663,190.02,189.98,2.6322]
[1736489873021,9.44115663,190.02,189.98,2.6322]
[1736489873224,9.41664773,190.02,189.98,2.6322]
[1736489875320,6.80955663,190.04,189.99,2.632]
[1736489875723,6.80955663,190.04,189.96,6.80955663]
[1736489875924,2.6316,190.03,189.96,6.80955663]
[1736489876723,6.80955663,190.02,189.98,2.6322]
[1736489876914,9.44125663,190.02,189.96,6.80955663]
[1736489877115,9.44125663,190.02,189.96,2.6324]
[1736489877315,9.44175663,189.98,189.92,6.80955663]
[1736489878825,6.80955663,189.98,189.92,6.80955663]
[1736489879031,6.80955663,189.96,189.9,6.80955663]
[1736489879924,6.80955663,189.96,189.92,2.633]
[1736489880321,6.80955663,189.96,189.88,6.80955663]
[1736489880518,6.80955663,189.96,189.9,2.6333]
[1736489881519,2.6326,189.95,189.9,2.6333]
[1736489882526,2.6326,189.95,189.88,6.80955663]
[1736489882728,2.6326,189.95,189.91,2.6332]
[1736489886526,2.6326,189.95,189.88,6.80955663]
[1736489886724,2.6329,189.93,189.84,1.5475]
[1736489886917,6.80955663,189.92,189.86,6.80955663]
[1736489887725,6.80955663,189.92,189.88,2.6335]
[1736489889829,9.44255663,189.92,189.88,2.6335]
[1736489890029,6.80955663,189.92,189.88,2.6335]
[1736489892627,2.6332,189.91,189.85,6.80955663]
[1736489893830,6.80955663,189.88,189.81,6.80955663]
[1736489894332,2.6337,189.87,189.83,2.6342]
[1736489894734,6.80955663,189.86,189.81,6.80955663]
[1736489895133,6.80955663,189.86,189.82,2.6343]
[1736489895637,9.44345663,189.86,189.81,2.6345]
[1736489895942,1.5055,189.91,189.76,3.0526]
[1736489895943,6.80955663,189.84,189.77,6.80955663]
[1736489896142,6.80955663,189.82,189.77,6.80955663]
[1736489896344,6.80955663,189.82,189.77,9.44455663]
[1736489896542,6.80955663,189.82,189.75,6.80955663]
[1736489897246,6.80955663,189.8,189.73,6.80955663]
[1736489898442,6.80955663,189.78,189.74,2.6354]
[1736489900042,2.6344,189.83,189.75,6.80955663]
[1736489900244,9.44395663,189.83,189.75,6.80955663]
[1736489900938,6.80955663,189.81,189.77,2.6351]
[1736489901743,6.80955663,189.79,189.74,2.6354]
[1736489902143,9.44455663,189.79,189.74,2.6354]
[1736489902445,6.80955663,189.77,189.73,2.6356]
[1736489903541,6.80955663,189.77,189.71,9.44535663]
[1736489903745,9.44495663,189.75,189.68,6.80955663]
[1736489903945,6.80955663,189.77,189.7,6.80955663]
[1736489904244,6.80955663,189.77,189.65,4.7867]
[1736489904245,6.80955663,189.8,189.65,4.7867]
[1736489904448,6.80955663,189.78,189.72,6.80955663]
[1736489905444,6.80955663,189.8,189.74,6.80955663]
[1736489905651,6.80955663,189.82,189.76,6.80955663]
[1736489905851,3.1313,189.85,189.8,6.80955663]
[1736489906042,6.80955663,189.86,189.8,6.80955663]
[1736489906247,6.80955663,189.88,189.8,6.80955663]
[1736489906451,6.80955663,189.88,189.83,2.6341]
[1736489906749,6.80955663,189.9,189.82,6.80955663]
[1736489906947,9.44295663,189.9,189.84,2.6341]
[1736489907949,6.80955663,189.88,189.82,6.80955663]
[1736489909149,2.6338,189.87,189.82,2.6344]
[1736489910750,2.6338,189.87,189.81,2.6346]
[1736489910946,2.6339,189.86,189.81,2.6346]
[1736489911457,2.6337,189.87,189.82,2.6344]
[1736489914254,2.6339,189.86,189.82,2.6344]
[1736489914852,2.6337,189.87,189.82,2.6344]
[1736489915262,9.5934761,189.9,189.84,2.6341]
[1736489915462,2.6336,189.89,189.84,2.6341]
[1736489915970,9.5934761,189.9,189.85,2.634]
[1736489916158,12.2267761,189.9,189.85,2.634]
[1736489916355,14.1506761,189.93,189.81,9.5934761]
[1736489916958,14.1506761,189.93,189.82,1.5804]
[1736489917258,16.7835761,189.93,189.88,2.6335]
[1736489917562,16.7835761,189.93,189.82,1.5804]
[1736489919061,16.7835761,189.93,189.87,2.6336]
[1736489919254,2.633,189.92,189.87,2.6336]
[1736489920852,2.633,189.92,189.82,1.5804]
[1736489920853,2.6335,189.89,189.82,1.5804]
[1736489921254,14.1506761,189.93,189.82,1.5804]
[1736489922063,2.6333,189.9,189.85,2.634]
[1736489922957,2.6333,189.9,189.82,1.5804]
[1736489923158,2.6332,189.91,189.86,2.6339]
[1736489923555,9.5934761,189.88,189.8,4.6]
[1736489923762,9.5934761,189.85,189.81,2.6345]
[1736489926172,9.5934761,189.85,189.75,6.1628]
[1736489926968,9.5934761,189.85,189.83,2.6342]
[1736489927467,9.5934761,189.88,189.87,2.6337]
[1736489932470,9.5934761,189.88,189.86,2.6338]
[1736489933372,9.5934761,189.88,189.75,15.7562761]
[1736489933571,9.5934761,189.88,189.87,2.6337]
[1736489935571,9.5934761,189.91,189.87,2.6337]
[1736489936470,9.5934761,189.91,189.88,2.6336]
[1736489937570,12.2266761,189.91,189.88,2.6336]
[1736489939268,6.13883073,189.89,189.88,2.6336]
[1736489940274,6.13883073,189.89,189.87,2.6337]
[1736489940480,6.13883073,189.88,189.87,2.6337]
[1736489940679,6.13883073,189.88,189.76,57.98704254]
[1736489940680,1.5048,189.93,189.83,6.13883073]
[1736489940876,6.13883073,189.91,189.83,6.13883073]
[1736489941185,6.13883073,189.92,189.85,6.13883073]
[1736489941374,4.6324,189.98,189.87,6.13883073]
[1736489941574,1.5955,189.98,189.94,2.6327]
[1736489941770,6.13883073,189.96,189.89,6.13883073]
[1736489942075,6.13883073,189.97,189.91,6.13883073]
[1736489942283,6.13883073,189.97,189.92,2.6329]
[1736489942574,3.1367,190.03,189.9,1.519]
[1736489942575,3.1367,190.03,189.93,6.13883073]
[1736489942774,1.4922,190.05,189.93,6.13883073]
[1736489942775,6.13883073,190.0,189.93,6.13883073]
[1736489942971,1.4922,190.05,189.99,2.6321]
[1736489942972,4.1235,190.05,189.99,2.6321]
[1736489943173,1.4922,190.05,189.95,6.13883073]
[1736489943371,1.5466,190.09,190.02,2.6316]
[1736489943372,9.57595565,190.07,190.02,2.6316]
[1736489943582,9.57595565,190.07,189.96,4.6]
[1736489945176,12.20695565,190.07,190.0,2.6319]
[1736489945377,9.57595565,190.07,189.96,4.6]
[1736489946876,12.20695565,190.07,190.01,2.6318]
[1736489947074,9.57595565,190.07,189.96,4.6]
[1736489948275,12.20695565,190.07,190.01,2.6317]
[1736489949683,12.20695565,190.07,190.02,2.6316]
[1736489949879,9.57595565,190.07,190.02,2.6316]
[1736489950186,9.57595565,190.07,189.96,4.6]
[1736489950375,12.20695565,190.07,190.01,2.6317]
[1736489951275,9.57595565,190.07,189.96,4.6]
[1736489951480,9.57595565,190.04,189.94,14.15595565]
[1736489951680,9.57595565,190.04,189.94,4.58]
[1736489951883,9.57595565,190.04,189.93,4.58]
[1736489952883,9.57595565,190.01,189.92,1.6377]
[1736489953088,9.57595565,190.01,189.91,1.5874]
[1736489954184,12.20775565,190.01,189.95,2.6326]
[1736489954385,12.20775565,190.01,189.91,1.5874]
[1736489954787,9.57595565,189.98,189.9,1.519]
[1736489956088,9.57595565,189.98,189.93,2.6328]
[1736489960284,9.57595565,190.01,189.9,9.57595565]
[1736489960478,1.4966,190.03,189.9,9.57595565]
[1736489960684,1.4966,190.03,190.0,2.6319]
[1736489963194,1.4966,190.03,189.93,9.57595565]
[1736489963392,1.4966,190.03,189.92,1.5449]
[1736489963992,4.1281,190.03,189.92,1.5449]
[1736489965090,4.1281,190.03,189.97,2.6323]
[1736489966294,1.4966,190.03,189.97,2.6323]
[1736489966486,9.57595565,190.02,189.95,2.6326]
[1736489966682,9.57595565,189.99,189.89,4.58]
[1736489966985,12.20805565,189.99,189.89,4.58]
[1736489967185,12.20805565,189.99,189.93,2.6328]
[1736489967387,9.57595565,189.99,189.89,4.58]
[1736489967583,9.57595565,189.99,189.94,2.6327]
[1736489969496,9.57595565,189.99,189.89,4.58]
[1736489969697,9.57595565,189.99,189.93,2.6329]
[1736489970189,12.20805565,189.99,189.93,2.6329]
[1736489971296,12.20805565,189.99,189.87,14.15595565]
[1736489971297,9.57595565,189.99,189.87,14.15595565]
[1736489971593,9.57595565,190.02,189.9,9.57595565]
[1736489971792,9.57595565,190.02,189.91,1.5021]
[1736489973090,9.57595565,190.02,189.97,2.6322]
[1736489974994,9.57595565,190.02,189.91,1.5021]
[1736489975191,9.57595565,190.02,189.98,2.6322]
[1736489975894,2.6318,190.01,189.94,2.6327]
[1736489976103,9.57595565,190.02,189.91,1.5021]
[1736489976598,2.632,190.0,189.91,1.5021]
[1736489976994,1.4966,190.03,189.91,1.5021]
[1736489976995,9.57595565,190.01,189.91,1.5021]
[1736489977195,12.20775565,190.01,189.95,2.6325]
[1736489977801,2.6319,190.0,189.95,2.6325]
[1736489977992,9.57595565,190.01,189.91,1.5021]
[1736489978196,1.4966,190.03,189.93,9.57595565]
[1736489978395,1.4966,190.03,189.94,4.58]
[1736489978601,1.4966,190.03,190.01,2.6318]
[1736489979301,1.4966,190.03,189.94,4.58]
[1736489980410,1.4966,190.03,189.98,2.6321]
[1736489981006,1.4966,190.03,189.99,2.6321]
[1736489981305,1.4966,190.03,189.94,4.58]
[1736489981500,1.4966,190.03,190.0,2.6318]
[1736489981707,1.4966,190.03,189.94,4.58]
[1736489983105,1.4966,190.03,190.01,2.6317]
[1736489984003,4.1282,190.03,189.94,4.58]
[1736489984210,4.1282,190.03,189.92,1.5184]
[1736489984807,4.1282,190.03,189.95,2.6326]
[1736489985009,4.1282,190.03,189.92,1.5184]
[1736489985312,4.1282,190.03,189.98,2.6321]
[1736489986413,1.4966,190.03,190.0,2.6319]
[1736489986615,1.4966,190.03,189.93,9.57595565]
[1736489987117,1.4966,190.03,190.01,2.6318]
[1736489989321,1.4966,190.03,189.99,2.632]
[1736489990213,4.1282,190.03,189.99,2.632]
[1736489995423,6.13033128,190.01,189.99,2.632]
[1736489998026,3.2179,190.07,189.96,6.13033128]
[1736489998227,6.13033128,190.05,189.98,6.13033128]
[1736489998525,6.13033128,190.05,190.03,2.6314]
[1736489999025,7.74333128,190.07,190.04,2.6313]
[1736489999327,6.13033128,190.07,190.0,6.13033128]
[1736490001026,6.13033128,190.07,189.98,4.58]
[1736490001027,6.13033128,190.05,189.98,10.71033128]
[1736490001416,6.13033128,190.05,190.02,2.6316]
[1736490001724,6.13033128,190.05,189.98,10.71033128]
[1736490001926,6.13033128,190.05,190.0,2.6319]
[1736490002324,6.13033128,190.05,189.98,10.71033128]
[1736490003322,10.63953464,190.07,190.01,2.6318]
[1736490003621,10.63953464,190.04,189.94,7.29838927]
[1736490004021,10.63953464,190.04,189.95,2.6325]
[1736490004022,2.6317,190.02,189.95,2.6325]
[1736490004227,2.6317,190.02,189.92,16.73793464]
[1736490004623,2.6319,190.0,189.95,2.6326]
[1736490005327,10.63953464,190.04,189.92,10.63953464]
[1736490005525,218.7023963,190.25,189.98,10.63953464]
[1736490005824,13.27013464,190.1,189.98,10.63953464]
[1736490006329,13.27013464,190.1,190.04,2.6313]
[1736490006731,13.27013464,190.1,189.98,12.20473464]
[1736490006922,4.6349,190.14,190.08,2.6308]
[1736490007124,10.63953464,190.16,190.04,15.21953464]
[1736490007622,4.2149,190.2,190.12,2.6302]
[1736490007825,10.63953464,190.19,190.07,10.63953464]
[1736490008231,10.63953464,190.19,190.14,2.63]
[1736490010436,10.63953464,190.19,190.08,1.5652]
[1736490010633,1.6445,190.29,190.13,10.63953464]
[1736490010825,10.63953464,190.27,190.13,1.5781]
[1736490011031,10.63953464,190.27,190.17,10.63953464]
[1736490011229,13.26783464,190.27,190.21,2.629]
[1736490011537,3.2093,190.29,190.17,10.63953464]
[1736490011736,3.2093,190.29,190.13,1.5781]
[1736490011737,3.2093,190.29,190.2,10.63953464]
[1736490012040,1.5387,190.32,190.2,10.63953464]
[1736490012538,1.5387,190.32,190.27,2.6282]
[1736490012841,1.5387,190.32,190.23,10.63953464]
[1736490013334,1.5387,190.32,190.27,2.6282]
[1736490013536,3.1551,190.37,190.23,10.63953464]
[1736490013835,3.1551,190.37,190.26,10.63953464]
[1736490015038,3.1551,190.37,190.26,15.21953464]
[1736490015343,5.782,190.37,190.3,2.6278]
[1736490015640,1.6166,190.39,190.33,2.6273]
[1736490018340,4.2432,190.39,190.31,2.6275]
[1736490018935,4.2432,190.39,190.29,10.63953464]
[1736490019136,4.2432,190.39,190.32,2.6275]
[1736490019743,13.26593464,190.41,190.34,2.6271]
[1736490020035,10.63953464,190.41,190.26,10.63953464]
[1736490020231,10.63953464,190.38,190.26,15.21953464]
[1736490021338,10.63953464,190.38,190.28,2.628]
[1736490021539,10.63953464,190.35,190.23,10.63953464]
[1736490021743,2.6275,190.32,190.23,10.63953464]
[1736490022141,1.6393,190.34,190.23,10.63953464]
[1736490022944,2.6274,190.33,190.26,2.6283]
[1736490023146,1.6393,190.34,190.26,10.63953464]
[1736490023440,3.095,190.37,190.26,10.63953464]
[1736490023941,2.627,190.36,190.26,10.63953464]
[1736490024139,3.095,190.37,190.26,10.63953464]
[1736490024647,4.7364,190.37,190.26,10.63953464]
[1736490024840,2.6271,190.35,190.28,2.628]
[1736490025041,4.7364,190.37,190.26,10.63953464]
[1736490025947,2.627,190.36,190.26,10.63953464]
[1736490026147,4.7364,190.37,190.26,10.63953464]
[1736490027343,2.6271,190.35,190.28,2.628]
[1736490027542,4.7364,190.37,190.23,10.63953464]
[1736490028145,2.6276,190.32,190.25,2.6285]
[1736490028944,2.6276,190.31,190.25,2.6285]
[1736490031544,2.6276,190.31,190.22,1.4918]
[1736490031545,10.63953464,190.33,190.21,3.0912]
[1736490031749,10.63953464,190.3,190.17,10.63953464]
[1736490032442,2.6285,190.26,190.2,2.6291]
[1736490032647,2.6285,190.26,190.17,10.63953464]
[1736490032648,10.63953464,190.27,190.13,10.63953464]
[1736490033146,2.6285,190.25,190.18,2.6293]
[1736490034446,2.6285,190.25,190.13,10.63953464]
[1736490034647,2.6285,190.25,190.19,2.6292]
[1736490035447,2.6285,190.25,190.2,2.6292]
[1736490035750,2.6286,190.24,190.13,10.63953464]
[1736490037045,10.63953464,190.27,190.19,2.6293]
[1736490037346,10.63953464,190.27,190.13,10.63953464]
[1736490037347,13.26773464,190.27,190.16,10.63953464]
[1736490038346,3.1614,190.28,190.16,10.63953464]
[1736490038547,3.1614,190.28,190.19,10.63953464]
[1736490039049,5.7895,190.28,190.22,2.6288]
[1736490039352,10.63953464,190.24,190.12,12.16643464]
[1736490039745,10.63953464,190.24,190.18,2.6294]
[1736490040243,13.26823464,190.24,190.18,2.6294]
[1736490040645,10.63953464,190.24,190.18,2.6294]
[1736490040850,2.6288,190.23,190.17,2.6295]
[1736490041049,10.63953464,190.21,190.11,3.0326]
[1736490041249,10.63953464,190.21,190.1,7.29838927]
[1736490041448,10.63953464,190.18,190.1,7.29838927]
[1736490041849,13.26913464,190.18,190.11,2.6303]
[1736490042255,13.26913464,190.18,190.06,10.63953464]
[1736490042256,10.63953464,190.18,190.06,10.63953464]
[1736490042454,2.63,190.14,190.08,2.6308]
[1736490042851,2.6303,190.12,190.04,34.15667908]
[1736490043248,10.63953464,190.12,190.03,2.6314]
[1736490043453,2.6307,190.09,190.03,2.6314]
[1736490043753,10.63953464,190.12,190.03,2.6314]
[1736490044152,2.6305,190.11,190.03,2.6314]
[1736490044558,2.6305,190.11,190.0,10.63953464]
[1736490044559,2.6305,190.11,190.04,2.6313]
[1736490045455,2.6305,190.11,190.0,10.63953464]
[1736490045656,2.6305,190.11,190.05,2.6312]
[1736490046050,10.63953464,190.12,190.07,2.6308]
[1736490046453,2.6301,190.14,190.03,10.63953464]
[1736490046648,2.6301,190.14,190.06,2.6311]
[1736490046853,2.6301,190.14,190.03,10.63953464]
[1736490047053,2.6301,190.13,190.03,10.63953464]
[1736490047249,2.6301,190.13,190.07,2.6309]
[1736490048854,15.21953464,190.15,190.03,10.63953464]
[1736490049058,7.2099,190.15,190.03,10.63953464]
[1736490049461,7.2099,190.15,190.09,2.6305]
[1736490050158,2.63,190.14,190.09,2.6305]
[1736490050660,4.58,190.15,190.07,2.6308]
[1736490051059,2.6304,190.12,190.05,2.6311]
[1736490051363,10.63953464,190.1,190.0,10.63953464]
[1736490052062,2.6309,190.08,190.03,2.6314]
[1736490052564,10.63953464,190.1,189.99,1.5664]
[1736490052764,10.63953464,190.1,190.01,2.6317]
[1736490052765,2.6311,190.06,190.01,2.6317]
[1736490052954,2.6311,190.06,189.98,63.55654339]
[1736490053358,2.6309,190.08,190.01,2.6317]
[1736490053753,1.6372,190.09,189.98,63.55654339]
[1736490053954,2.6309,190.08,189.98,74.19607803]
[1736490054263,10.63953464,190.07,189.98,63.55654339]
[1736490054565,12.21533464,190.07,189.98,66.18874339]
[1736490054765,12.21533464,190.07,189.98,63.55654339]
[1736490056070,2.6314,190.05,189.99,2.632]
[1736490056968,2.6314,190.05,190.0,2.6319]
[1736490057165,4.2069,190.07,189.98,63.55654339]
[1736490057367,6.1888,190.08,189.98,74.19607803]
[1736490057670,4.58,190.08,190.04,2.6314]
[1736490058360,4.58,190.08,189.98,74.19607803]
[1736490058562,4.58,190.08,190.01,2.6318]
[1736490058763,10.63953464,190.07,189.98,63.55654339]
[1736490058972,2.6315,190.04,189.98,63.55654339]
[1736490060164,2.6313,190.05,189.99,2.6319]
[1736490060372,4.58,190.09,189.98,63.55654339]
[1736490060674,15.21953464,190.09,189.98,63.55654339]
[1736490061672,4.7238,190.08,189.98,63.55654339]
[1736490062375,2.6314,190.05,190.0,2.6319]
[1736490063979,4.7238,190.08,189.98,63.55654339]
[1736490064173,2.6311,190.06,190.01,2.6316]
[1736490064664,2.6311,190.06,189.98,63.55654339]
[1736490064665,2.6312,190.05,189.98,63.55654339]
[1736490064869,2.6312,190.05,190.0,2.6319]
[1736490065975,2.6311,190.06,190.01,2.6317]
[1736490066171,4.7238,190.08,189.98,63.55654339]
[1736490066975,10.63953464,190.06,189.98,63.55654339]
[1736490067173,2.6314,190.04,190.0,2.6319]
[1736490067473,4.7238,190.08,189.98,63.55654339]
[1736490067674,1.4929,190.08,189.98,63.55654339]
[1736490067875,2.631,190.07,190.01,2.6318]
[1736490068076,1.4929,190.08,189.98,63.55654339]
[1736490068472,2.6311,190.06,189.98,63.55654339]
[1736490069177,2.6311,190.06,190.01,2.6317]
[1736490069378,2.6311,190.06,189.98,63.55654339]
[1736490069677,2.6315,190.03,189.98,66.18874339]
[1736490070181,2.6315,190.03,189.98,63.55654339]
[1736490071076,2.6311,190.07,189.98,63.55654339]
[1736490071281,15.21953464,190.09,189.98,63.55654339]
[1736490071577,2.6311,190.07,189.98,74.19607803]
[1736490072377,2.6308,190.08,189.98,74.19607803]
[1736490072580,2.6308,190.08,189.99,1.6005]
[1736490073184,2.6308,190.08,190.03,2.6315]
[1736490074283,10.63953464,190.09,189.99,1.6005]
[1736490074485,2.6313,190.05,190.01,2.6318]
[1736490076484,2.6313,190.05,189.98,63.55654339]
[1736490076686,2.6313,190.05,190.0,2.6319]
[1736490077089,2.6313,190.05,189.98,63.55654339]
[1736490077484,2.6314,190.04,189.98,63.55654339]
[1736490078387,2.6317,190.02,189.95,29.06665681]
[1736490078984,10.63953464,190.03,189.98,2.6322]
[1736490079186,4.58,190.05,189.94,8.79448927]
[1736490079684,4.58,190.05,189.95,4.77392243]
[1736490080388,7.2113,190.05,190.01,2.6318]
[1736490080688,12.18233464,190.09,189.97,10.63953464]
[1736490080990,14.81303464,190.09,189.98,1.5528]
[1736490082089,12.18233464,190.09,189.98,1.5528]
[1736490082283,2.6308,190.08,189.98,1.5528]
[1736490082787,12.18233464,190.09,190.03,2.6314]
[1736490082987,10.63953464,190.09,189.98,1.5528]
[1736490083290,10.63953464,190.09,189.98,30.61945681]
[1736490083680,13.27023464,190.09,190.01,2.6317]
[1736490083880,13.27023464,190.09,189.98,30.61945681]
[1736490084090,13.27023464,190.09,189.98,8.85118927]
[1736490084290,10.63953464,190.09,189.98,8.85118927]
[1736490084491,2.6308,190.08,190.03,2.6314]
[1736490085788,13.27023464,190.09,190.04,2.6313]
[1736490086895,10.63953464,190.09,190.04,2.6313]
[1736490087192,2.6308,190.08,190.04,2.6313]
[1736490092295,10.63953464,190.09,189.98,1.5528]
[1736490092501,13.26993464,190.12,190.08,2.6308]
[1736490092700,10.63953464,190.12,190.01,1.5032]
[1736490093299,2.6304,190.11,190.07,2.6308]
[1736490095099,10.63953464,190.12,190.02,1.6237]
[1736490095404,10.63953464,190.15,190.03,10.63953464]
[1736490096903,10.63953464,190.15,190.06,2.631]
[1736490097102,1.6316,190.17,190.06,2.631]
[1736490097103,10.63953464,190.12,190.06,2.631]
[1736490097706,2.6304,190.11,190.06,2.631]
[1736490098206,10.63953464,190.12,190.02,1.6237]
[1736490098506,10.63953464,190.15,190.03,10.63953464]
[1736490098905,2.6302,190.13,190.08,2.6307]
[1736490099297,2.6303,190.12,190.07,2.6309]
[1736490099501,2.6303,190.12,190.03,10.63953464]
[1736490100103,10.63953464,190.15,190.03,10.63953464]
[1736490100308,6.2116,190.17,190.03,10.63953464]
[1736490100497,10.63953464,190.18,190.06,10.63953464]
[1736490100696,10.63953464,190.21,190.09,10.63953464]
[1736490100895,4.6562,190.23,190.12,10.63953464]
[1736490101103,187.50944382,190.26,190.12,10.63953464]